bitfinex-derivatives/quotes_ETHF0:USTF0_20250929
["timestamp","ask_amount","ask_price","bid_price","bid_amount"]
[1759163931371,1.21427,4161.3,4161.2,0.2192]
[1759163932068,0.43231,4161.0,4160.9,0.3121]
[1759163932266,0.64773,4160.8,4160.7,2.50424168]
[1759163932662,0.2154,4160.8,4160.7,2.50424168]
[1759163932868,0.2154,4161.0,4160.9,1.18602]
[1759163933072,0.5782,4161.5,4161.4,0.4416]
[1759163933277,0.9186,4161.5,4161.4,0.7537]
[1759163933985,1.21425,4161.5,4161.4,0.7537]
[1759163934280,0.43225,4161.5,4161.4,1.18596]
[1759163934482,0.43225,4161.5,4161.4,0.7537]
[1759163934981,0.65505,4161.5,4161.4,0.7537]
[1759163935677,0.97445,4161.5,4161.4,0.7537]
[1759163936077,0.97445,4161.5,4161.1,1.29420168]
[1759163936078,0.8758,4161.5,4161.1,1.29420168]
[1759163936388,0.7483,4161.3,4161.2,1.83660168]
[1759163936570,1.18057,4161.3,4161.2,2.26888168]
[1759163936769,1.18057,4161.3,4161.2,2.49348168]
[1759163936967,1.18057,4161.3,4161.2,2.06120168]
[1759163939482,1.18057,4161.3,4161.2,1.51180168]
[1759163939682,1.18057,4161.3,4161.2,0.2176]
[1759163940372,1.18057,4161.3,4161.0,1.61900168]
[1759163940373,0.86117,4161.3,4161.0,1.29420168]
[1759163940573,1.18059,4161.1,4161.0,1.29420168]
[1759163940778,0.43239,4160.2,4160.1,0.3248]
[1759163941082,0.43239,4160.2,4160.1,0.5424]
[1759163941680,0.43239,4160.2,4160.1,0.3248]
[1759163942480,0.43239,4160.2,4160.1,0.5424]
[1759163943681,0.43239,4160.2,4160.1,0.3248]
[1759163947081,0.43239,4160.2,4160.1,0.5424]
[1759163948290,0.43239,4160.2,4160.1,0.3248]
[1759163949790,0.43241,4160.0,4159.9,0.02679746]
[1759163950090,0.67541,4160.0,4159.9,0.35159746]
[1759163951189,1.08068,4161.4,4160.6,0.3248]
[1759163951386,0.43229,4161.1,4161.0,0.6707]
[1759163951586,0.43235,4160.6,4160.5,0.1283]
[1759163952188,0.43235,4160.6,4160.5,0.6707]
[1759163952796,0.43235,4160.6,4160.5,0.8953]
[1759163953998,0.67635,4160.6,4160.5,0.8822]
[1759163956196,40.8,4161.6,4160.6,0.3117]
[1759163956399,1.08067,4161.4,4161.1,0.2266]
[1759163956601,1.08068,4161.4,4161.0,0.3624]
[1759163956901,0.43229,4161.1,4161.0,0.8938]
[1759163961502,0.43229,4161.1,4161.0,0.4475]
[1759163964405,0.67629,4161.1,4161.0,0.4475]
[1759163965396,0.67629,4161.1,4161.0,0.6741]
[1759163966305,0.67629,4161.1,4161.0,0.9004]
[1759163967207,1.15952686,4161.1,4161.0,0.9004]
[1759163971005,1.15952686,4161.1,4161.0,0.6741]
[1759163971206,1.15952686,4161.1,4161.0,0.4475]
[1759163972711,0.43232,4160.9,4160.8,0.3626]
[1759163973107,0.91555686,4160.9,4160.8,0.3626]
[1759163982420,0.91555686,4160.9,4160.8,0.024]
[1759163982709,0.43235,4160.6,4160.5,0.3386]
[1759163982917,0.4324,4160.1,4160.0,0.6907]
[1759163983109,41.95863686,4160.1,4160.0,0.6907]
[1759163983309,41.95963686,4160.1,4160.0,0.917]
[1759163987418,41.4764,4160.1,4160.0,0.917]
[1759163987625,41.95646799,4160.1,4160.0,0.917]
[1759163991026,41.71246799,4160.1,4160.0,0.917]
[1759163991226,0.91246799,4160.1,4160.0,0.917]
[1759163991420,1.15546799,4160.1,4160.0,0.917]
[1759163991620,0.6754,4160.1,4160.0,0.917]
[1759163991819,1.15512987,4160.1,4160.0,0.917]
[1759163992323,0.6754,4160.1,4160.0,0.917]
[1759163993718,0.4324,4160.1,4160.0,0.917]
[1759163994030,2.16119,4161.7,4161.0,0.1281]
[1759163994324,0.43228,4161.2,4161.1,0.3093]
[1759163994623,0.4175,4160.6,4160.5,0.3354]
[1759163994817,0.9478,4160.6,4160.5,0.3354]
[1759163995014,0.6615,4160.6,4160.5,0.5512]
[1759163995728,1.09385,4160.6,4160.5,0.5512]
[1759163996122,0.88395,4160.6,4160.5,0.5512]
[1759163996431,1.09385,4160.6,4160.5,0.5512]
[1759163996621,1.09385,4160.6,4160.5,0.8605]
[1759163997631,0.88395,4160.6,4160.5,0.8605]
[1759163998324,0.67635,4160.6,4160.5,0.8605]
[1759163998525,0.63989,4161.1,4161.0,0.5568]
[1759163998730,1.36386782,4161.1,4161.0,0.8661]
[1759163999617,1.57376782,4161.1,4161.0,0.8661]
[1759164000015,1.86006782,4161.1,4161.0,0.6503]
[1759164000317,1.86006782,4161.1,4161.0,0.3093]
[1759164000728,1.57376782,4161.1,4161.0,0.8661]
[1759164001313,1.86006782,4161.1,4161.0,0.8661]
[1759164001815,1.86006782,4161.1,4161.0,0.6503]
[1759164002021,1.86006782,4161.1,4161.0,0.3093]
[1759164003628,0.84985,4160.6,4160.5,0.6447]
[1759164003825,1.38015,4160.6,4160.5,0.6447]
[1759164004025,1.86020563,4160.6,4160.5,0.6447]
[1759164004428,1.57390563,4160.6,4160.5,0.8605]
[1759164005134,1.86020563,4160.6,4160.5,0.8605]
[1759164006427,1.86020563,4160.6,4160.5,0.3093]
[1759164008034,1.57390563,4160.6,4160.5,0.8661]
[1759164008730,1.12000563,4160.6,4160.5,0.8661]
[1759164008934,1.36400563,4160.6,4160.5,0.8661]
[1759164009735,1.30441,4160.0,4159.9,0.02679746]
[1759164009933,2.02846563,4160.0,4159.9,0.23409746]
[1759164010128,42.82846563,4160.0,4159.9,0.23409746]
[1759164010326,42.82846563,4160.0,4159.9,0.21009746]
[1759164010629,42.58446563,4160.0,4159.9,0.21009746]
[1759164010831,0.6764,4160.1,4160.0,0.5568]
[1759164011033,0.884,4160.1,4160.0,0.5568]
[1759164011330,42.2146,4160.1,4160.0,0.5568]
[1759164011524,42.2146,4160.1,4160.0,0.7324]
[1759164012534,1.4146,4160.1,4160.0,0.7324]
[1759164013033,42.2146,4160.1,4160.0,0.7324]
[1759164016036,1.4146,4160.1,4160.0,0.7324]
[1759164016731,1.4146,4160.1,4160.0,0.5166]
[1759164016923,1.4146,4160.1,4160.0,0.2073]
[1759164017130,0.1294,4160.0,4159.9,0.00279746]
[1759164017333,0.8751,4160.0,4159.9,0.00279746]
[1759164018233,1.1191,4160.0,4159.9,0.00279746]
[1759164019042,1.1191,4160.0,4159.9,0.21119746]
[1759164019234,1.1191,4160.0,4159.9,0.52859746]
[1759164019539,1.55151,4160.0,4159.9,0.21119746]
[1759164020830,1.55151,4160.0,4159.9,0.52859746]
[1759164022537,1.55151,4160.0,4159.9,0.21119746]
[1759164022932,1.55151,4160.0,4159.9,0.52859746]
[1759164025140,2.02944569,4160.0,4159.9,0.00279746]
[1759164025945,42.82944569,4160.0,4159.9,0.00279746]
[1759164028438,42.82944569,4160.0,4159.9,0.55459746]
[1759164029844,42.58544569,4160.0,4159.9,0.55459746]
[1759164030142,42.82944569,4160.0,4159.9,0.55459746]
[1759164030443,42.58544569,4160.0,4159.9,0.55459746]
[1759164030645,42.82944569,4160.0,4159.9,0.55459746]
[1759164031039,42.58544569,4160.0,4159.9,0.00279746]
[1759164031337,42.82944569,4160.0,4159.9,0.00279746]
[1759164033647,42.58544569,4160.0,4159.9,0.00279746]
[1759164033847,42.82944569,4160.0,4159.9,0.00279746]
[1759164036240,42.82944569,4160.0,4159.9,0.32829746]
[1759164036640,42.82944569,4160.0,4159.9,0.00279746]
[1759164037244,42.58544569,4160.0,4159.9,0.00279746]
[1759164037442,42.82944569,4160.0,4159.9,0.00279746]
[1759164037643,42.82944569,4160.0,4159.9,0.32829746]
[1759164038251,42.58544569,4160.0,4159.9,0.32829746]
[1759164038451,42.82844569,4160.0,4159.9,0.32829746]
[1759164038651,42.82844569,4160.0,4159.9,0.00279746]
[1759164041351,42.58544569,4160.0,4159.9,0.00279746]
[1759164041552,42.82844569,4160.0,4159.9,0.00279746]
[1759164043454,42.58544569,4160.0,4159.9,0.00279746]
[1759164043754,42.82844569,4160.0,4159.9,0.00279746]
[1759164044359,0.7599,4160.4,4160.3,0.4334]
[1759164044549,1.36546349,4160.4,4160.3,0.7589]
[1759164044857,1.21787,4160.4,4160.3,0.7589]
[1759164045553,0.4545,4160.4,4160.3,1.19128]
[1759164045858,0.4545,4160.4,4160.3,0.7589]
[1759164045859,0.88687,4160.4,4160.3,0.7589]
[1759164046556,0.64387,4160.4,4160.3,0.7589]
[1759164046758,0.67537,4160.4,4160.3,0.7589]
[1759164047545,0.43237,4160.4,4160.3,0.7589]
[1759164047747,0.67537,4160.4,4160.3,0.7589]
[1759164048548,0.43237,4160.4,4160.3,0.7589]
[1759164048754,0.67537,4160.4,4160.3,0.7589]
[1759164049548,0.67537,4160.4,4160.3,1.19128]
[1759164049853,0.64385,4160.6,4160.5,0.8872]
[1759164050156,1.1922,4161.1,4161.0,0.8872]
[1759164050458,1.4352,4161.1,4161.0,0.2263]
[1759164051062,1.19223,4160.8,4160.7,0.7589]
[1759164051353,1.19223,4160.8,4160.4,1.72395847]
[1759164051354,0.2115,4160.5,4160.4,1.29158847]
[1759164051661,0.2115,4160.5,4160.0,0.1283]
[1759164051662,1.19227,4160.4,4160.3,0.5518]
[1759164051850,1.19227,4160.4,4160.3,0.7589]
[1759164055461,1.19227,4160.4,4160.3,0.5518]
[1759164055767,0.7495,4160.1,4160.0,0.7434]
[1759164056471,0.7495,4160.1,4160.0,0.8708]
[1759164057368,0.2114,4160.1,4160.0,0.8708]
[1759164057671,0.43233,4160.8,4160.7,0.5198]
[1759164057865,0.64143,4160.8,4160.7,0.7434]
[1759164058063,0.64143,4160.8,4160.2,1.29299343]
[1759164058064,0.43236,4160.5,4160.4,0.3121]
[1759164058266,0.7495,4160.5,4160.4,0.4313]
[1759164058471,0.7495,4160.5,4160.4,0.7434]
[1759164058674,1.18186,4160.5,4160.4,0.7434]
[1759164058867,0.7495,4160.5,4160.3,1.29299343]
[1759164059068,0.6415,4160.1,4160.0,1.85169343]
[1759164059274,1.1819,4160.1,4160.0,1.85169343]
[1759164059568,1.1819,4160.1,4160.0,2.28410343]
[1759164059774,1.1819,4160.1,4160.0,2.03639343]
[1759164060276,1.1819,4160.1,4160.0,2.16379343]
[1759164060479,0.1246,4160.0,4159.9,0.00279746]
[1759164060776,0.8741,4160.0,4159.9,0.00279746]
[1759164061079,41.9181,4160.0,4159.9,0.00279746]
[1759164062775,41.6741,4160.0,4159.9,0.00279746]
[1759164062973,41.9181,4160.0,4159.9,0.22639746]
[1759164063172,41.9181,4160.0,4159.9,0.00279746]
[1759164066367,46.9181,4160.0,4159.9,7.46e-06]
[1759164066580,47.83014389,4160.0,4159.9,7.46e-06]
[1759164067681,42.83009022,4160.0,4159.9,7.46e-06]
[1759164068375,42.58609022,4160.0,4159.9,0.22360746]
[1759164068574,42.83009022,4160.0,4159.9,0.53570746]
[1759164068872,42.58609022,4160.0,4159.9,0.53570746]
[1759164069171,1.42591,4160.0,4159.9,0.74340746]
[1759164069577,0.67641,4160.0,4159.9,0.74340746]
[1759164070182,0.88551,4160.0,4159.9,0.74340746]
[1759164071379,1.42591,4160.0,4159.9,0.74340746]
[1759164073892,1.56221,4160.0,4159.9,7.46e-06]
[1759164076180,6.56221,4160.0,4159.9,7.46e-06]
[1759164076373,7.04243517,4160.0,4159.9,7.46e-06]
[1759164077380,47.84243517,4160.0,4159.9,7.46e-06]
[1759164078380,42.84243517,4160.0,4159.9,7.46e-06]
[1759164079482,42.59843517,4160.0,4159.9,7.46e-06]
[1759164079682,42.84243517,4160.0,4159.9,7.46e-06]
[1759164095498,42.59843517,4160.0,4159.9,7.46e-06]
[1759164095700,42.84243517,4160.0,4159.9,7.46e-06]
[1759164110595,0.43251,4159.0,4158.9,1.29323598]
[1759164110800,0.7594,4158.9,4158.8,1.29323598]
[1759164111002,0.92729039,4158.9,4158.8,0.2079]
[1759164111203,0.92729039,4158.9,4158.8,0.5337]
[1759164111705,1.24179039,4158.9,4158.8,0.5337]
[1759164112008,1.24401905,4158.9,4158.8,0.53667024]
[1759164114309,1.24401905,4158.9,4158.8,0.53587024]
[1759164115305,0.76162866,4158.9,4158.8,0.53587024]
[1759164115607,1.24346952,4158.9,4158.8,0.53587024]
[1759164116415,0.76162866,4158.9,4158.8,0.53587024]
[1759164116603,0.76162866,4158.9,4158.8,0.00297024]
[1759164116804,1.24341082,4158.9,4158.8,0.00297024]
[1759164117111,1.24341082,4158.9,4158.8,0.33067024]
[1759164117300,0.76162866,4158.9,4158.8,0.54627024]
[1759164118809,0.76162866,4158.9,4158.8,0.00297024]
[1759164119205,1.24328838,4158.9,4158.8,0.00297024]
[1759164119405,41.56162866,4158.9,4158.8,0.00297024]
[1759164120402,0.00222866,4158.9,4158.8,1.19220024]
[1759164121404,0.00222866,4158.9,4158.8,6.19220024]
[1759164121610,0.00222866,4158.9,4158.8,7.48543622]
[1759164122603,0.00222866,4158.9,4158.8,6.19220024]
[1759164123299,0.43242,4159.9,4159.8,0.7567]
[1759164123499,1.1887978,4159.9,4159.8,0.7567]
[1759164123704,1.4991978,4159.9,4159.8,0.7567]
[1759164124106,1.7119978,4159.9,4159.8,0.7567]
[1759164124509,1.71439438,4159.9,4159.8,0.7567]
[1759164128311,0.97609438,4159.9,4159.8,0.7567]
[1759164128515,0.00239658,4159.9,4159.8,1.18913]
[1759164129813,0.00239658,4159.9,4159.8,0.7567]
[1759164130014,0.43481658,4159.9,4159.8,0.7567]
[1759164132522,0.43481658,4159.9,4159.8,1.18913]
[1759164132823,0.43481658,4159.9,4159.8,0.7567]
[1759164133023,0.00239658,4159.9,4159.8,1.18913]
[1759164134316,0.00239658,4159.9,4159.8,6.18913]
[1759164134524,0.98694,4160.7,4160.6,0.7664]
[1759164134721,0.66004,4160.7,4160.6,0.7664]
[1759164134923,0.90304,4160.7,4160.6,0.7664]
[1759164135321,0.4324,4160.1,4160.0,0.3547]
[1759164135524,0.9888692,4160.1,4160.0,0.5713]
[1759164136127,1.1975692,4160.1,4160.0,0.5498]
[1759164136424,1.1975692,4160.1,4160.0,0.7664]
[1759164136826,1.1975692,4160.1,4160.0,0.894]
[1759164137317,0.4342692,4160.1,4160.0,0.894]
[1759164137517,0.0018692,4160.1,4160.0,1.32641]
[1759164138131,0.4342692,4160.1,4160.0,0.894]
[1759164138427,1.1975692,4160.1,4160.0,0.3227]
[1759164138624,1.1975692,4160.1,4160.0,0.5498]
[1759164138826,1.1975692,4160.1,4160.0,0.7664]
[1759164141425,0.4342692,4160.1,4160.0,0.894]
[1759164142025,0.4342692,4160.1,4160.0,1.32641]
[1759164142627,0.4342692,4160.1,4160.0,0.894]
[1759164144320,0.4342692,4160.1,4160.0,1.32641]
[1759164144724,0.4342692,4160.1,4160.0,0.894]
[1759164146226,0.4342692,4160.1,4160.0,1.32641]
[1759164146829,0.4342692,4160.1,4160.0,0.894]
[1759164147128,0.4342692,4160.1,4160.0,1.32641]
[1759164148530,0.0018692,4160.1,4160.0,6.32641]
[1759164150029,0.43235,4160.6,4160.5,0.9063]
[1759164150220,1.19685,4160.6,4160.5,2.2011911]
[1759164150425,1.19685,4160.6,4160.5,0.9063]
[1759164150829,0.85825,4160.6,4160.5,0.9063]
[1759164151028,0.86000127,4160.6,4160.5,0.9063]
[1759164151227,1.19860127,4160.6,4160.5,0.9063]
[1759164151531,1.19860127,4160.6,4160.5,0.2169]
[1759164151724,1.19688,4160.3,4160.2,0.5503]
[1759164151928,1.19688,4160.3,4160.2,0.7733]
[1759164153129,0.4259,4160.1,4160.0,0.5743]
[1759164153325,0.7645,4160.1,4160.0,0.5743]
[1759164154324,0.7645,4160.1,4160.0,0.024]
[1759164154731,0.43244,4159.7,4159.6,0.5503]
[1759164154923,1.19694,4159.7,4159.6,0.5503]
[1759164155833,1.19694,4159.7,4159.6,0.7733]
[1759164158333,0.55786,4159.5,4159.4,1.2948911]
[1759164158631,1.19696,4159.5,4159.4,0.7733]
[1759164161330,1.19696,4159.5,4159.4,1.20577]
[1759164161536,1.19696,4159.5,4159.4,0.7733]
[1759164166337,0.5513,4159.5,4159.2,0.3334]
[1759164166530,0.7645,4159.3,4159.2,0.5503]
[1759164166731,0.3386,4159.2,4159.1,1.6522911]
[1759164166930,0.7645,4159.2,4159.1,1.6522911]
[1759164167131,0.7645,4159.2,4159.1,1.8451911]
[1759164167930,0.7645,4159.2,4159.1,2.2776911]
[1759164168940,1.19699,4159.2,4159.1,2.0681911]
[1759164170445,1.19699,4159.2,4159.1,0.7733]
[1759164171144,1.19699,4159.2,4158.6,1.72159619]
[1759164171145,0.1254,4156.5,4156.1,7.8631]
[1759164171440,0.43297,4154.6,4154.5,0.133]
[1759164171641,0.43297,4154.6,4154.5,0.76477449]
[1759164171839,2.3575834,4154.6,4154.5,0.76477449]
[1759164172035,0.72423731,4154.6,4154.5,1.92615927]
[1759164172234,40.8,4155.6,4155.3,0.4399]
[1759164172445,2.36567721,4155.6,4155.5,0.5729]
[1759164172645,2.36567721,4155.6,4155.5,0.76591077]
[1759164172843,0.43287,4155.6,4155.5,0.76591077]
[1759164173039,0.43287,4155.6,4155.5,1.09931077]
[1759164173248,0.43510439,4155.6,4155.5,1.09931077]
[1759164173545,0.43510439,4155.6,4155.5,2.26069555]
[1759164173742,0.43510439,4155.6,4155.5,2.06768478]
[1759164174144,0.00223439,4155.6,4155.5,2.06608478]
[1759164176245,2.38860883,4157.2,4157.1,0.7461]
[1759164176444,1.95590883,4157.2,4157.1,0.7461]
[1759164176743,0.4327,4157.3,4157.1,0.4324]
[1759164176943,0.4327,4157.3,4157.2,1.90748478]
[1759164177144,0.43449589,4157.3,4157.2,0.7461]
[1759164177345,0.43449589,4157.3,4157.2,1.90748478]
[1759164177547,0.00179589,4157.3,4157.2,1.90748478]
[1759164180250,0.43448589,4157.3,4157.2,1.90748478]
[1759164180943,0.00179589,4157.3,4157.2,1.90748478]
[1759164183244,0.00179589,4157.3,4157.2,0.7461]
[1759164185145,0.65032703,4157.3,4157.2,0.7461]
[1759164185752,0.65032703,4157.3,4157.2,1.90748478]
[1759164185953,0.00179589,4157.3,4157.2,1.90748478]
[1759164190348,0.43448589,4157.3,4157.2,1.90748478]
[1759164191155,1.07133026,4157.3,4157.2,1.90748478]
[1759164191451,1.07133026,4157.3,4157.2,2.34018478]
[1759164191649,1.07133026,4157.3,4157.2,1.90748478]
[1759164192055,0.43448589,4157.3,4157.2,1.90748478]
[1759164192555,1.06690082,4157.3,4157.2,2.34018478]
[1759164192756,1.06690082,4157.3,4157.2,1.90748478]
[1759164194256,1.06690082,4157.3,4157.2,2.34018478]
[1759164194454,0.63421082,4157.3,4157.2,2.34018478]
[1759164195050,0.00179589,4157.3,4157.2,2.34018478]
[1759164195950,0.66367537,4157.3,4157.2,2.34018478]
[1759164197053,0.00179589,4157.3,4157.2,2.34018478]
[1759164197553,0.43261,4158.1,4158.0,0.8717]
[1759164198450,0.00198366,4158.1,4158.0,1.30686337]
[1759164198651,0.00198366,4158.1,4158.0,0.87424337]
[1759164199553,0.00198366,4158.1,4158.0,1.30686337]
[1759164199754,0.00198366,4158.1,4158.0,0.87424337]
[1759164200155,0.43459366,4158.1,4158.0,0.87424337]
[1759164200959,5.43459366,4158.1,4158.0,0.44644337]
[1759164201962,5.43459366,4158.1,4158.0,0.66604337]
[1759164203854,0.43459366,4158.1,4158.0,0.66604337]
[1759164204164,0.43459366,4158.1,4158.0,0.87424337]
[1759164204559,5.43459366,4158.1,4158.0,0.66604337]
[1759164206161,5.43459366,4158.1,4158.0,0.44644337]
[1759164209467,6.04260629,4158.1,4158.0,0.44644337]
[1759164209967,0.43266,4157.6,4157.5,0.1548]
[1759164210164,1.29167263,4157.6,4157.5,0.1548]
[1759164210358,0.43271,4157.1,4157.0,0.1322]
[1759164210563,1.29172263,4157.1,4157.0,0.1322]
[1759164211058,1.29172263,4157.1,4157.0,0.13443808]
[1759164211967,1.29172263,4157.1,4157.0,0.67643808]
[1759164214561,1.29172263,4157.1,4157.0,0.46783808]
[1759164215271,1.29172263,4157.1,4156.5,0.1322]
[1759164215272,0.43276,4156.6,4156.5,0.1322]
[1759164215462,1.29077263,4156.6,4156.5,0.1322]
[1759164215666,5.85801263,4156.6,4156.0,0.3412]
[1759164215867,0.43281,4156.2,4156.0,0.5651]
[1759164216171,0.85801263,4156.1,4156.0,0.99793]
[1759164216364,0.85801263,4156.1,4156.0,1.00070612]
[1759164217462,0.85801263,4156.1,4156.0,1.33410612]
[1759164217862,0.85801263,4156.1,4156.0,2.4954909]
[1759164218670,0.60801263,4156.1,4156.0,2.4954909]
[1759164218869,0.85801263,4156.1,4156.0,2.4954909]
[1759164220166,0.60801263,4156.1,4156.0,2.4954909]
[1759164220368,0.43271,4157.1,4157.0,0.8985]
[1759164220567,1.28494527,4157.1,4157.0,0.8985]
[1759164220975,1.28494527,4157.1,4157.0,0.6746]
[1759164221573,1.28494527,4157.1,4157.0,0.466]
[1759164222774,1.28494527,4157.1,4157.0,0.6746]
[1759164223164,1.28494527,4157.1,4157.0,0.8985]
[1759164223565,1.03494527,4157.1,4157.0,0.8985]
[1759164223772,1.28494527,4157.1,4157.0,0.8985]
[1759164224868,1.28494527,4157.1,4157.0,0.6746]
[1759164225065,1.28494527,4157.1,4157.0,0.8985]
[1759164227274,1.28494527,4157.1,4157.0,0.466]
[1759164228381,1.28494527,4157.1,4157.0,0.8985]
[1759164228573,1.28494527,4157.1,4157.0,0.6746]
[1759164228877,1.28494527,4157.1,4157.0,0.466]
[1759164229077,6.28494527,4157.1,4157.0,0.466]
[1759164229277,6.28494527,4157.1,4156.5,0.1326]
[1759164229278,0.43276,4156.6,4156.5,0.1326]
[1759164229478,0.68276,4156.6,4156.5,0.466]
[1759164229676,1.28499527,4156.6,4156.5,0.6746]
[1759164231883,1.28499527,4156.6,4156.5,0.466]
[1759164234379,6.93417527,4156.6,4156.2,0.325]
[1759164234577,0.43279,4156.3,4156.2,0.325]
[1759164234977,1.03502527,4156.3,4156.2,0.325]
[1759164235677,0.43281,4156.1,4156.0,0.46037612]
[1759164235878,1.28404527,4156.1,4156.0,0.46037612]
[1759164236481,1.28404527,4156.1,4156.0,0.66617612]
[1759164236873,1.28404527,4156.1,4156.0,0.87827612]
[1759164237084,0.60223527,4156.1,4156.0,0.87827612]
[1759164237285,1.28404527,4156.1,4156.0,0.87827612]
[1759164239385,1.03504527,4156.1,4156.0,0.87827612]
[1759164239577,1.28404527,4156.1,4156.0,0.87827612]
[1759164240789,1.28404527,4156.1,4156.0,0.46037612]
[1759164242488,1.28404527,4156.1,4156.0,0.66617612]
[1759164243386,1.28404527,4156.1,4156.0,0.46037612]
[1759164243986,1.28404527,4156.1,4154.5,1.21866]
[1759164243987,0.43292,4155.1,4155.0,0.4576]
[1759164244283,0.85223527,4155.1,4155.0,0.8755]
[1759164244485,41.65223527,4155.1,4155.0,0.8755]
[1759164244990,41.65223527,4155.1,4155.0,0.87857358]
[1759164244991,41.65395112,4155.1,4155.0,0.87857358]
[1759164245878,41.40395112,4155.1,4155.0,0.87857358]
[1759164246080,41.65395112,4155.1,4155.0,0.87857358]
[1759164246274,41.65395112,4155.1,4155.0,0.66647358]
[1759164246490,41.65395112,4155.1,4155.0,0.46067358]
[1759164247288,41.65395112,4155.1,4155.0,0.00307358]
[1759164248188,41.65395112,4155.1,4155.0,0.32807358]
[1759164249194,42.08687112,4155.1,4155.0,0.32727358]
[1759164250885,42.08687112,4155.1,4155.0,0.00227358]
[1759164251481,48.81860112,4155.1,4154.0,0.4612]
[1759164251797,0.43302,4154.1,4154.0,0.8791]
[1759164251979,0.68302,4154.1,4154.0,0.8791]
[1759164252289,1.28525527,4154.1,4154.0,0.8791]
[1759164252494,1.28525527,4154.1,4154.0,0.88153431]
[1759164252495,0.60223527,4154.1,4154.0,0.88153431]
[1759164252795,0.85223527,4154.1,4154.0,2.04291909]
[1759164252991,2.7645724,4154.1,4154.0,2.04291909]
[1759164254082,2.7645724,4154.1,4153.0,0.325]
[1759164254083,0.43312,4153.2,4153.0,0.325]
[1759164254390,0.57704145,4153.1,4153.0,0.8784]
[1759164254695,0.1485711,4153.1,4153.0,0.8784]
[1759164254987,0.244,4153.4,4153.3,0.4301]
[1759164255193,41.23304,4154.0,4153.9,0.753]
[1759164255387,41.48504,4154.0,4153.9,0.753]
[1759164255695,41.48504,4154.0,4153.9,1.91438478]
[1759164256089,2.34536713,4154.1,4154.0,0.8784]
[1759164256289,3.02296713,4154.1,4154.0,2.03978478]
[1759164256489,3.02296713,4154.1,4154.0,0.8784]
[1759164257590,3.02296713,4154.1,4154.0,2.03978478]
[1759164257790,3.29546713,4154.1,4154.0,2.03978478]
[1759164258789,3.29546713,4154.1,4154.0,0.3229]
[1759164258989,0.64158,4153.6,4153.5,0.8784]
[1759164259194,0.89258,4153.6,4153.5,0.8784]
[1759164259396,1.38218,4153.6,4153.5,0.4483]
[1759164259696,1.10968,4153.6,4153.5,0.6557]
[1759164260286,0.4595,4153.6,4153.5,0.8784]
[1759164260494,0.251,4153.6,4153.5,2.03978478]
[1759164260892,2.33793713,4154.1,4154.0,0.1254]
[1759164261088,0.6776,4154.1,4154.0,0.8784]
[1759164261500,1.11062,4154.1,4154.0,0.8784]
[1759164262299,1.38312,4154.1,4154.0,0.6557]
[1759164262505,3.27813592,4154.1,4154.0,0.5303]
[1759164262815,3.00563592,4154.1,4154.0,0.8784]
[1759164263197,3.00563592,4154.1,4154.0,2.03978478]
[1759164263404,3.27813592,4154.1,4154.0,0.6557]
[1759164264088,3.27813592,4154.1,4154.0,0.3229]
[1759164264293,3.27813592,4154.1,4153.3,0.77342458]
[1759164264294,0.441,4153.4,4153.3,0.77342458]
[1759164264598,0.467,4153.4,4153.3,0.77342458]
[1759164264796,0.692,4153.4,4153.3,0.56142458]
[1759164265106,0.9642,4153.4,4153.3,0.55542458]
[1759164266603,1.53433286,4153.4,4153.3,0.55542458]
[1759164267101,1.26213286,4153.4,4153.3,0.55542458]
[1759164267597,1.69523286,4153.4,4153.3,0.55542458]
[1759164267804,1.96743286,4153.4,4153.3,0.55542458]
[1759164268305,1.69523286,4153.4,4153.3,0.55542458]
[1759164268599,1.26213286,4153.4,4153.3,0.77342458]
[1759164268803,1.69523286,4153.4,4153.3,0.77342458]
[1759164269608,1.96743286,4153.4,4153.3,0.77342458]
[1759164270897,1.26213286,4153.4,4153.3,1.20653458]
[1759164271104,1.26213286,4153.4,4153.3,0.77342458]
[1759164271606,1.96743286,4153.4,4153.3,0.77342458]
[1759164271899,1.26213286,4153.4,4153.3,0.77342458]
[1759164272102,1.69523286,4153.4,4153.3,0.77342458]
[1759164272609,1.96743286,4153.4,4153.3,0.77342458]
[1759164273204,1.69523286,4153.4,4153.3,0.77342458]
[1759164274102,1.96743286,4153.4,4153.3,0.77342458]
[1759164274809,1.53433286,4153.4,4153.3,0.77342458]
[1759164275509,1.69523286,4153.4,4153.3,0.77342458]
[1759164277106,0.82113286,4153.4,4153.3,1.20653458]
[1759164277609,0.82113286,4153.4,4153.3,0.77342458]
[1759164277998,1.03713286,4153.4,4153.3,0.77342458]
[1759164278308,1.03713286,4153.4,4153.3,1.20653458]
[1759164278500,0.82113286,4153.4,4153.3,1.20653458]
[1759164279509,1.03713286,4153.4,4153.3,0.77342458]
[1759164279810,1.47023286,4153.4,4153.3,0.77342458]
[1759164280608,1.96743286,4153.4,4153.3,0.00202458]
[1759164280812,1.53433286,4153.4,4153.3,0.55542458]
[1759164281012,1.69523286,4153.4,4153.3,0.55542458]
[1759164281204,42.49523286,4153.4,4153.3,0.55542458]
[1759164281513,42.49523286,4153.4,4153.3,0.77342458]
[1759164282209,42.06213286,4153.4,4153.3,0.77342458]
[1759164282416,42.49423286,4153.4,4153.3,0.77342458]
[1759164283722,1.69423286,4153.4,4153.3,0.77342458]
[1759164284612,1.01113286,4153.4,4153.3,1.20653458]
[1759164284810,1.26113286,4153.4,4153.3,0.77342458]
[1759164285008,1.69423286,4153.4,4153.3,0.77342458]
[1759164285214,1.26113286,4153.4,4153.3,0.77342458]
[1759164285513,1.69423286,4153.4,4153.3,0.77342458]
[1759164286407,1.96643286,4153.4,4153.3,0.34342458]
[1759164287416,1.96643286,4153.4,4153.3,0.55542458]
[1759164288008,1.69423286,4153.4,4153.3,0.77342458]
[1759164288920,1.96643286,4153.4,4153.3,0.77342458]
[1759164289814,1.96643286,4153.4,4153.3,0.55542458]
[1759164290216,1.69423286,4153.4,4153.3,0.77342458]
[1759164291619,0.57013286,4153.4,4153.3,5.77342458]
[1759164291811,0.57013286,4153.4,4153.3,6.20653458]
[1759164292009,0.57013286,4153.4,4153.3,5.77342458]
[1759164292414,0.57013286,4153.4,4153.3,6.20653458]
[1759164293624,1.9816769,4155.0,4154.2,0.43301]
[1759164293917,0.87395,4154.8,4154.7,0.43]